Workbook

Sheet Инструкция
AA1: (требуется обновление)
B2: ="Код шаблона: " & GetCode() -> Код шаблона: 46EP.STX
B3: ="Версия " & GetVersion() -> Версия 1.0
B5: Сведения об отпуске (передаче) электроэнергии распределительными сетевыми организациями отдельным категориям потребителей Приказ Росстата: Об утверждении формы от 05.09.2018 № 543
E7: • На рабочем месте должен быть установлен MS Office 2007 SP3, 2010, 2013, 2016 с полной версией MS Excel • Макросы во время работы должны быть включены (!) • Для корректной работы отчёта требуется выбрать низкий уровень безопасности (В меню MS Excel 2007/2010/2013/2016: Параметры Excel | Центр управления безопасностью | Параметры центра управления безопасностью | Параметры макросов | Включить все макросы | ОК) • Если Вы работаете в табличном процессоре MS Excel 2007 и выше, то можете использовать для работы формат XLSB (Двоичная книга Excel). При работе в формате XLSB заметно быстрее происходит сохранение файла, а также уменьшается размер по сравнению с форматами XLS и XLSM • Не рекомендуется снимать защиту с листов и каким-либо образом модифицировать защищаемые формулы и расчётные поля, в противном случае, отчёт будет отклонён системой • При сохранении не следует выбирать формат XLSX (Книга Excel), так как в указанном формате макросы, необходимые для работы отчёта, безвозвратно удаляются
E21: A | F21: - предназначенные для заполнения | O21: A | P21: - обязательные для заполнения поля
E22: A | F22: - с формулами и константами | O22: A | P22: - незаполняемые поля
E23: A | F23: - с выбором значений по двойному клику
E35: Если в предложенном Вам списке необходимая организация, МР/МО отсутствуют, обновите реестры с помощью кнопок В результате синхронизации с базой данных список организаций (МР/МО) будет заменён актуальным (механизм синхронизации требует подключения к сети Интернет и основан на использовании протокола HTTPS (TCP порт 443)) Если после обновления Вам не удалось найти необходимую организацию в списке, обратитесь к ответственному за поддержание реестра Вашего региона.
E46: • При сохранении шаблона осуществляется проверка корректности данных, в том числе на наличие значений в ячейках, обязательных для заполнения • Если какая-то ячейка не удовлетворяет условию проверки, на лист «Проверка» добавляется гиперссылка на данную ячейку и указывается причина ошибки • В колонке «Статус» для каждого сообщения возможны 2 значения: ошибка и предупреждение • При наличии сообщений со статусом «Ошибка» шаблон будет отклонён системой и не будет загружен в хранилище данных, сообщения со статусом «Предупреждение» носят информационный характер, и такой шаблон будет принят системой
E59: Консультации: | K59: Обратиться за помощью
E60: Дистрибутивы: | K60: Перейти
E70: Общие указания по заполнению:
E71: Указания по заполнению формы федерального статистического наблюдения
E73: Если срок предоставления отчета истек, необходимо загрузить в систему пояснительную записку и указать ссылку на нее на листе "Титульный" в поле "Ссылка на обосновывающие материалы"
E76: Обосновывающие материалы необходимо загружать с помощью "ЕИАС Мониторинг":
E77: Руководство по загрузке документов
E79: Пример пояснительной записки:
E80: Пояснительная записка
E87: Отчётные формы: | K87: Перейти к разделу
E89: Контакты специалистов ЦА ФАС России:
E90: ФИО: | K90: Максим Николаевич Пальянов
E91: E-mail: | K91: palyanovmn@fas.gov.ru
E93: ФИО: | K93: Игорь Владиславович Бедрин
E94: E-mail: | K94: bedrin@fas.gov.ru
E103: При наличии подключения к Интернет, можно автоматически проверять наличие доступных обновлений. Выберите способ оповещения о наличии обновлений для отчёта:
F105: проверять доступные обновления (рекомендуется) | AA105: y
F107: никогда не проверять наличие обновлений (не рекомендуется)

Sheet Лог обновления (hidden)
A2: 3/17/2012 12:12:41 AM | B2: Дата/Время | C2: Сообщение | D2: Статус
B3: 2018-10-09T16:16:10 | C3: Проверка доступных обновлений... | D3: Информация
B4: 2018-10-09T16:16:12 | C4: Нет доступных обновлений для отчёта с кодом 46EP.STX! | D4: Информация
B5: 2018-10-09T16:18:22 | C5: Проверка доступных обновлений... | D5: Информация
B6: 2018-10-09T16:18:23 | C6: Нет доступных обновлений для отчёта с кодом 46EP.STX! | D6: Информация
B7: 2018-10-09T16:19:31 | C7: Проверка доступных обновлений... | D7: Информация
B8: 2018-10-09T16:19:33 | C8: Нет доступных обновлений для отчёта с кодом 46EP.STX! | D8: Информация
B9: 2019-01-11T10:34:41 | C9: Проверка доступных обновлений... | D9: Информация
B10: 2019-01-11T10:34:43 | C10: Нет доступных обновлений для отчёта с кодом 46EP.STX! | D10: Информация
B11: 2019-03-28T10:23:11 | C11: Проверка доступных обновлений... | D11: Информация
B12: 2019-03-28T10:23:13 | C12: Нет доступных обновлений для отчёта с кодом 46EP.STX! | D12: Информация
B13: 2019-04-17T09:39:31 | C13: Проверка доступных обновлений... | D13: Информация
B14: 2019-04-17T09:39:32 | C14: Нет доступных обновлений для отчёта с кодом 46EP.STX! | D14: Информация
B15: 2019-04-18T15:15:47 | C15: Проверка доступных обновлений... | D15: Информация
B16: 2019-04-18T15:15:49 | C16: Нет доступных обновлений для отчёта с кодом 46EP.STX! | D16: Информация
B17: 2019-05-14T09:58:03 | C17: Проверка доступных обновлений... | D17: Информация
B18: 2019-05-14T09:58:06 | C18: Нет доступных обновлений для отчёта с кодом 46EP.STX! | D18: Информация

Sheet Титульный
G7: =version -> Версия 1.0
E8: Сведения об отпуске (передаче) электроэнергии распределительными сетевыми организациями отдельным категориям потребителей
F10: Субъект РФ | G10: Орловская область
G11: Отчетный период
F12: Год | G12: 2020
F13: Месяц | G13: год
F15: Наименование организации | G15: АО "Протон" | J15: 26416780
F16: ИНН | G16: 5753018359
F17: КПП | G17: 575301001
F18: Вид деятельности | G18: РСО
F20: Тип отчета | G20: В целом по организации
F21: Наименование обособленного подразделения
F23: ОКПО | G23: 41677105
F25: ОКАТО | G25: 54401369000
F27: Муниципальный район | G27: Город Орёл
F28: Муниципальное образование | G28: Город Орёл
F29: ОКТМО | G29: 54701000
F31: Котлодержатель | G31: Нет
F33: Плательщик НДС | G33: Да
G34: Адрес организации
F35: Юридический адрес: | G35: Лескова ул., д.19, 302040, Россия
F36: Почтовый адрес: | G36: Лескова ул., д.19, 302040, Россия
G37: Руководитель
F38: Фамилия, имя, отчество | G38: Меньшов В.В.
F39: (код) номер телефона | G39: 414410
G40: Главный бухгалтер
F41: Фамилия, имя, отчество | G41: Волченко В.С.
F42: (код) номер телефона | G42: 414442
G43: Должностное лицо, ответственное за составление формы
F44: Фамилия, имя, отчество | G44: Дрожжинова Т.Н.
F45: Должность | G45: инженер-электрик
F46: (код) номер телефона | G46: 498570
F47: e-mail | G47: dtamary@mail.ru
F49: Максимальный интервал представления отчёта за прошедшие периоды (дней) | G49: 90
E56: Дата последнего обновления реестра МР/МО: 09.10.2018 16:19:40
E57: Дата последнего обновления реестра организаций: 14.05.2019 9:58:30
F59: Срок предоставления отчета истек | G59: Нет
F60: Ссылка на обосновывающие материалы

Sheet Отпуск ЭЭ сет организациями
F5: L1 | G5: L1.1 | H5: L1.2 | I5: L2 | J5: L2.1 | K5: L2.2 | L5: L3 | M5: L3.1 | N5: L3.1 | O5: L3.2 | P5: L4.1 | Q5: L4.2
D8: Сведения об отпуске (передаче) электроэнергии распределительными сетевыми организациями отдельным категориям потребителей
D9: =IF(org="","Не определено",org) -> АО "Протон"
K10: Коды по ОКЕИ: 1000 киловатт-часов – 246, мегаватт – 215, тысяча рублей – 384
D11: № п/п | E11: Наименование показателя | F11: Код строки | G11: Всего | H11: В том числе по уровню напряжения
H12: ВН | I12: СН1 | J12: СН2 | K12: НН
D13: 0 | E13: 1 | F13: 2 | G13: 3 | H13: 4 | I13: 5 | J13: 6 | K13: 7
D14: I. Электроэнергия (тыс. кВт ч)
D15: 1 | E15: Поступление в сеть из других организаций: | F15: 10 | G15: =SUM(H15:K15) -> 81775.435 | H15: =H16+H17+H20+H23 -> 81775.435 | I15: =I16+I17+I20+I23 -> 0 | J15: =J16+J17+J20+J23 -> 0 | K15: =K16+K17+K20+K23 -> 0 | P15: 10
D16: 1.1 | E16: из сетей ПАО "ФСК ЕЭС" | F16: 20 | G16: =SUM(H16:K16) -> 81775.435 | H16: 81775.435 | P16: 20
D17: 1.2 | E17: от генерирующих компаний и блок-станций: | F17: 30 | G17: 0 | H17: =SUM(H18:H19) -> 0 | I17: =SUM(I18:I19) -> 0 | J17: =SUM(J18:J19) -> 0 | K17: =SUM(K18:K19) -> 0 | P17: 30
D18: 1.2.0 | F18: 30
E19: Добавить организацию
D20: 1.3 | E20: от несетевых организаций: | F20: 230 | G20: 0 | H20: =SUM(H21:H22) -> 0 | I20: =SUM(I21:I22) -> 0 | J20: =SUM(J21:J22) -> 0 | K20: =SUM(K21:K22) -> 0
D21: 1.3.0 | F21: 230
E22: Добавить организацию
D23: 1.4 | E23: от смежных сетевых организаций: | F23: 430 | G23: 0 | H23: =SUM(H24:H25) -> 0 | I23: =SUM(I24:I25) -> 0 | J23: =SUM(J24:J25) -> 0 | K23: =SUM(K24:K25) -> 0 | P23: 40
D24: 1.4.0 | F24: 430
E25: Добавить организацию
D26: 2 | E26: Поступление в сеть из других уровней напряжения (трансформация) | F26: 630 | G26: 9992.515 | H26: =H28+H29+H30 -> 0 | I26: =I27+I29+I30 -> 0 | J26: =J27+J28+J30 -> 6904.233 | K26: =K27+K28+K29 -> 3088.282 | P26: 50
D27: 2.1 | E27: ВН | F27: 640 | G27: 6904.233 | J27: =H42 -> 6904.233 | P27: 60
D28: 2.2 | E28: СН1 | F28: 650 | G28: 0 | P28: 70
D29: 2.3 | E29: СН2 | F29: 660 | G29: 3088.282 | K29: =J42 -> 3088.282 | P29: 80
D30: 2.4 | E30: НН | F30: 670 | G30: 0 | P30: 90
D31: 3 | E31: Генерация на установках организации (совмещение деятельности) | F31: 680 | G31: 0
D32: 4 | E32: Отпуск из сети: | F32: 690 | G32: 75317.641 | H32: =H33+H35+H38+H41 -> 68527.696 | I32: =I33+I35+I38+I41 -> 0 | J32: =J33+J35+J38+J41 -> 3752.055 | K32: =K33+K35+K38+K41 -> 3037.89 | P32: 100
D33: 4.1 | E33: прямым прочим потребителям по договорам оказания услуг по передаче электрической энергии, в том числе: | F33: 700 | G33: 0
D34: 4.1.1 | E34: потребителям, опосредованно подключенным к шинам генераторов | F34: 710 | G34: 0
D35: 4.2 | E35: потребителям ГП, ЭСО, ЭСК, в том числе: | F35: 720 | G35: 75317.641 | H35: =64228.415+H92 -> 68527.696 | J35: =J92 -> 3752.055 | K35: =K91 -> 3037.89
D36: 4.2.1 | E36: прочим потребителям, в том числе: | F36: 730 | G36: 0
D37: 4.2.1.1 | E37: потребителям, опосредованно подключенным к шинам генераторов | F37: 740 | G37: 0
D38: 4.3 | E38: смежным сетевым организациям: | F38: 750 | G38: 0 | H38: =SUM(H39:H40) -> 0 | I38: =SUM(I39:I40) -> 0 | J38: =SUM(J39:J40) -> 0 | K38: =SUM(K39:K40) -> 0
D39: 4.3.0 | F39: 750
E40: Добавить организацию
D41: 4.4 | E41: населению и приравненным к нему категориям | F41: 950 | G41: 0 | P41: 120
D42: 5 | E42: Отпуск в сеть других уровней напряжения | F42: 960 | G42: 9992.515 | H42: =H16-H32-H44-H45-H46 -> 6904.233 | J42: =J27-J35-J45 -> 3088.282 | P42: 150
D43: 6 | E43: Хозяйственные нужды организации | F43: 970 | G43: 0 | P43: 160
D44: 7 | E44: Собственное потребление (совмещение деятельности) | F44: 980 | G44: 5279.761 | H44: 5279.761 | P44: 180
D45: 8 | E45: Общий объем потерь (фактические объемы), в том числе: | F45: 990 | G45: 1178.033 | H45: 1063.745 | J45: 63.896 | K45: 50.392 | P45: 190
D46: 8.1 | E46: относимые на собственное потребление (фактическое значение) | F46: 1000 | G46: 0 | P46: 200
D47: 9 | E47: Нормативные потери (объемы потерь учтенные в сводном прогнозном балансе) | F47: 1010 | G47: 1292.3 | H47: 1167.365 | I47: 0 | J47: 70.166 | K47: 54.769
D48: 10 | E48: Объем превышения фактических объемов потерь электрической энергии над объемами потерь, учтенными в сводном прогнозном балансе за соответствующий расчетный период | F48: 1020 | G48: -114.267 | H48: =H45-H47 -> -103.62 | I48: =I45-I47 -> 0 | J48: =J45-J47 -> -6.27 | K48: =K45-K47 -> -4.377
D49: 11 | E49: Небаланс | F49: 1030 | G49: 0 | H49: =(H15+H26+H31)-(H32+H42+H43+H44+H45) -> 0 | I49: =(I15+I26+I31)-(I32+I42+I43+I44+I45) -> 0 | J49: =(J15+J26+J31)-(J32+J42+J43+J44+J45) -> 0 | K49: =(K15+K26+K31)-(K32+K42+K43+K44+K45) -> 0 | P49: 210
D50: II. Мощность (МВт)
D51: 12 | E51: Поступление в сеть из других организаций: | F51: 1040 | G51: 20.96 | H51: =H52+H53+H56+H59 -> 20.96 | I51: =I52+I53+I56+I59 -> 0 | J51: =J52+J53+J56+J59 -> 0 | K51: =K52+K53+K56+K59 -> 0 | P51: 300
D52: 12.1 | E52: из сетей ПАО "ФСК ЕЭС" | F52: 1050 | G52: 20.96 | H52: 20.96 | P52: 310
D53: 12.2 | E53: от генерирующих компаний и блок-станций: | F53: 1060 | G53: 0 | H53: =SUM(H54:H55) -> 0 | I53: =SUM(I54:I55) -> 0 | J53: =SUM(J54:J55) -> 0 | K53: =SUM(K54:K55) -> 0 | P53: 320
D54: 12.2.0 | F54: 1060
E55: Добавить организацию
D56: 12.3 | E56: от несетевых организаций: | F56: 1260 | G56: 0 | H56: =SUM(H57:H58) -> 0 | I56: =SUM(I57:I58) -> 0 | J56: =SUM(J57:J58) -> 0 | K56: =SUM(K57:K58) -> 0
D57: 12.3.0 | F57: 1260
E58: Добавить организацию
D59: 12.4 | E59: от смежных сетевых организаций: | F59: 1460 | G59: 0 | H59: =SUM(H60:H61) -> 0 | I59: =SUM(I60:I61) -> 0 | J59: =SUM(J60:J61) -> 0 | K59: =SUM(K60:K61) -> 0 | P59: 330
D60: 12.4.0 | F60: 1460
E61: Добавить организацию
D62: 13 | E62: Поступление в сеть из других уровней напряжения (трансформация) | F62: 1660 | G62: 2.519198414 | H62: =H64+H65+H66 -> 0 | I62: =I63+I65+I66 -> 0 | J62: =J63+J64+J66 -> 1.748635633 | K62: =K63+K64+K65 -> 0.7705627807 | P62: 340
D63: 13.1 | E63: ВН | F63: 1670 | G63: 1.748635633 | J63: =H78 -> 1.748635633 | P63: 350
D64: 13.2 | E64: СН1 | F64: 1680 | G64: 0 | P64: 360
D65: 13.3 | E65: СН2 | F65: 1690 | G65: 0.7705627807 | K65: =J78 -> 0.7705627807 | P65: 370
D66: 13.4 | E66: НН | F66: 1700 | G66: 0 | P66: 380
D67: 14 | E67: Генерация на установках организации (совмещение деятельности) | F67: 1710 | G67: 0
D68: 15 | E68: Отпуск из сети: | F68: 1720 | G68: 19.3257919 | H68: =H69+H71+H74+H77 -> 17.58544962 | I68: =I69+I71+I74+I77 -> 0 | J68: =J69+J71+J74+J77 -> 0.9616955605 | K68: =K69+K71+K74+K77 -> 0.778646722 | P68: 390
D69: 15.1 | E69: прямым прочим потребителям по договорам оказания услуг по передаче электрической энергии, в том числе: | F69: 1730 | G69: 0
D70: 15.1.1 | E70: потребителям, опосредованно подключенным к шинам генераторов | F70: 1740 | G70: 0
D71: 15.2 | E71: потребителям ГП, ЭСО, ЭСК, в том числе: | F71: 1750 | G71: 19.3257919 | H71: =H52/$H$16*$H$35+0.021 -> 17.58544962 | J71: =H52/H16*J35 -> 0.9616955605 | K71: =H52/H16*K35 -> 0.778646722
D72: 15.2.1 | E72: прочим потребителям, в том числе: | F72: 1760 | G72: 0
D73: 15.2.1.1 | E73: потребителям, опосредованно подключенным к шинам генераторов | F73: 1770 | G73: 0
D74: 15.3 | E74: смежным сетевым организациям: | F74: 1780 | G74: 0 | H74: =SUM(H75:H76) -> 0 | I74: =SUM(I75:I76) -> 0 | J74: =SUM(J75:J76) -> 0 | K74: =SUM(K75:K76) -> 0
D75: 15.3.0 | F75: 1780
E76: Добавить организацию
D77: 15.4 | E77: населению и приравненным к нему категориям | F77: 1980 | G77: 0 | P77: 410
D78: 16 | E78: Отпуск в сеть других уровней напряжения | F78: 1990 | G78: 2.519198414 | H78: =H52-H68-H80-H81 -> 1.748635633 | J78: =J63-J71-J81 -> 0.7705627807 | P78: 440
D79: 17 | E79: Хозяйственные нужды организации | F79: 2000 | G79: 0 | P79: 450
D80: 18 | E80: Собственное потребление (совмещение деятельности) | F80: 2010 | G80: 1.353264468 | H80: =H52/H16*H44 -> 1.353264468 | P80: 470
D81: 19 | E81: Общий объем потерь (фактические объемы), в том числе: | F81: 2020 | G81: 0.3019436299 | H81: =H52/H16*H45 -> 0.2726502794 | J81: =H52/H16*J45 -> 0.01637729179 | K81: =H52/H16*K45 -> 0.01291605872 | P81: 480
D82: 19.1 | E82: относимые на собственное потребление | F82: 2030 | G82: 0 | H82: =H52/H16*H46 -> 0 | P82: 490
D83: 20 | E83: Нормативные потери (объемы потерь учтенные в сводном прогнозном балансе) | F83: 2040 | G83: 0.2721989161 | H83: 0.1508074603 | J83: 0.08736532529 | K83: 0.03402613051
D84: 21 | E84: Объем превышения фактических объемов потерь электрической энергии над объемами потерь, учтенными в сводном прогнозном балансе за соответствующий расчетный период | F84: 2050 | G84: 0.02974471384 | H84: =H81-H83 -> 0.1218428191 | I84: =I81-I83 -> 0 | J84: =J81-J83 -> -0.0709880335 | K84: =K81-K83 -> -0.02111007179
D85: 22 | E85: Небаланс | F85: 2060 | G85: -0.021 | H85: =(H51+H62+H67)-(H68+H78+H79+H80+H81) -> 0 | I85: =(I51+I62+I67)-(I68+I78+I79+I80+I81) -> 0 | J85: =(J51+J62+J67)-(J68+J78+J79+J80+J81) -> 0 | K85: =(K51+K62+K67)-(K68+K78+K79+K80+K81) -> -0.021 | P85: 500
D86: III. Мощность (МВт)
D87: 23 | E87: Заявленная мощность | F87: 2070 | G87: 20.67905637 | H87: =G71+G80 -> 20.67905637 | P87: 600
D88: 24 | E88: Максимальная мощность | F88: 2080 | G88: 26.1452 | H88: 26.1452 | P88: 610
D89: 25 | E89: Резервируемая мощность | F89: 2090 | G89: 5.4118 | H89: 5.4118 | P89: 620
D90: IV. Фактический полезный отпуск конечным потребителям (тыс. кВт ч; МВт)
D91: 26 | E91: Полезный отпуск конечным потребителям (тыс. кВт ч): | F91: 2100 | G91: 11089.226 | H91: =SUM(H92:H93) -> 4299.281 | I91: =SUM(I92:I93) -> 0 | J91: =SUM(J92:J93) -> 3752.055 | K91: =SUM(K92:K93) -> 3037.89 | P91: 700
D92: 26.1 | E92: по одноставочному тарифу | F92: 2110 | G92: 11019.545 | H92: 4299.281 | J92: 3752.055 | K92: 2968.209 | P92: 710
D93: 26.2 | E93: по двухставочному тарифу: | F93: 2120 | G93: 69.681 | H93: =H96 -> 0 | I93: =I96 -> 0 | J93: =J96 -> 0 | K93: =K96 -> 69.681 | P93: 720
D94: 26.2.1 | E94: мощность (МВт), в том числе: | F94: 2130 | G94: 0.008 | K94: 0.008 | P94: 730
D95: 26.2.1.1 | E95: опосредованно подключенным к шинам генераторов (МВт) | F95: 2140 | G95: 0
D96: 26.2.2 | E96: компенсация потерь (тыс. кВт ч) | F96: 2150 | G96: 69.681 | K96: 69.681 | P96: 740
D97: 27 | E97: Полезный отпуск потребителям ГП, ЭСО (тыс. кВт ч): | F97: 2160 | G97: 0 | H97: =H98+H114 -> 0 | I97: =I98+I114 -> 0 | J97: =J98+J114 -> 0 | K97: =K98+K114 -> 0 | P97: 750
D98: 27.1 | E98: по одноставочному тарифу: | F98: 2170 | G98: 0 | H98: =H99+H100 -> 0 | I98: =I99+I100 -> 0 | J98: =J99+J100 -> 0 | K98: =K99+K100 -> 0 | P98: 760
D99: 27.1.1 | E99: прочим потребителям | F99: 2180 | G99: 0
D100: 27.1.2 | E100: населению и приравненным к нему категориям потребителей: | F100: 2190 | G100: 0 | H100: =H101+H104+H107+H110+H111+H112+H113 -> 0 | I100: =I101+I104+I107+I110+I111+I112+I113 -> 0 | J100: =J101+J104+J107+J110+J111+J112+J113 -> 0 | K100: =K101+K104+K107+K110+K111+K112+K113 -> 0
D101: 27.1.2.1 | E101: Населению, проживающему в городских населенных пунктах в домах, не оборудованных в установленном порядке стационарными электроплитами и (или) электроотопительными установками и приравненным к нему категориям потребителей: | F101: 2200 | G101: 0 | H101: =H102+H103 -> 0 | I101: =I102+I103 -> 0 | J101: =J102+J103 -> 0 | K101: =K102+K103 -> 0
D102: 27.1.2.1.1 | E102: в пределах социальной нормы потребления | F102: 2210 | G102: 0
D103: 27.1.2.1.2 | E103: сверх социальной нормы потребления | F103: 2220 | G103: 0
D104: 27.1.2.2 | E104: Населению, проживающему в городских населенных пунктах в домах, оборудованных в установленном порядке стационарными электроплитами и электроотопительными установками и приравненным к нему категориям потребителей: | F104: 2230 | G104: 0 | H104: =H105+H106 -> 0 | I104: =I105+I106 -> 0 | J104: =J105+J106 -> 0 | K104: =K105+K106 -> 0
D105: 27.1.2.2.1 | E105: в пределах социальной нормы потребления | F105: 2240 | G105: 0
D106: 27.1.2.2.2 | E106: сверх социальной нормы потребления | F106: 2250 | G106: 0
D107: 27.1.2.3 | E107: Населению, проживающему в сельских населенных пунктах и приравненным к нему потребителям: | F107: 2260 | G107: 0 | H107: =H108+H109 -> 0 | I107: =I108+I109 -> 0 | J107: =J108+J109 -> 0 | K107: =K108+K109 -> 0
D108: 27.1.2.3.1 | E108: в пределах социальной нормы потребления | F108: 2270 | G108: 0
D109: 27.1.2.3.2 | E109: сверх социальной нормы потребления | F109: 2280 | G109: 0
D110: 27.1.2.4 | E110: Садоводческим, огородническим или дачным некоммерческим объединениям граждан | F110: 2290 | G110: 0
D111: 27.1.2.5 | E111: Религиозным организациям | F111: 2300 | G111: 0
D112: 27.1.2.6 | E112: Юридическим лицам приобретающим электроэнергию в целях потребления на коммунально-бытовые нужды в населенных пунктах, жилых зонах при воинских частях и в целях потребления осужденными в помещениях для их содержания | F112: 2310 | G112: 0
D113: 27.1.2.7 | E113: Некоммерческим объединениям граждан (гаражно-строительные, гаражные кооперативы) и хозяйственные постройки физических лиц | F113: 2320 | G113: 0
D114: 27.2 | E114: по двухставочному тарифу (прочие потребители): | F114: 2330 | G114: 0 | H114: =H117 -> 0 | I114: =I117 -> 0 | J114: =J117 -> 0 | K114: =K117 -> 0 | P114: 770
D115: 27.2.1 | E115: мощность (МВт), в том числе: | F115: 2340 | G115: 0 | P115: 780
D116: 27.2.1.1 | E116: опосредованно подключенным к шинам генераторов (МВт) | F116: 2350 | G116: 0
D117: 27.2.2 | E117: компенсация потерь (тыс. кВт ч) | F117: 2360 | G117: 0 | P117: 790
D118: 28 | E118: Оплачиваемый сетевыми организациями объем оказанных услуг по индивидуальному тарифу: | F118: 2370 | G118: 0 | H118: =SUM(H119:H120) -> 0 | I118: =SUM(I119:I120) -> 0 | J118: =SUM(J119:J120) -> 0 | K118: =SUM(K119:K120) -> 0
D119: 28.1 | E119: по одноставочному тарифу | F119: 2380 | G119: 0
D120: 28.2 | E120: по двухставочному тарифу: | F120: 2390 | G120: 0 | H120: =H122 -> 0 | I120: =I122 -> 0 | J120: =J122 -> 0 | K120: =K122 -> 0
D121: 28.2.1 | E121: мощность (МВт) | F121: 2400 | G121: 0
D122: 28.2.2 | E122: компенсация потерь (тыс. кВт ч) | F122: 2410 | G122: 0
D123: V. Стоимость услуг (тыс. руб.)
D124: 29 | E124: Стоимость услуг, оплачиваемая потребителями (конечными потребителями по прямым договорам и ТСО): | F124: 2420 | G124: 0 | H124: =SUM( H125:H126) -> 0 | I124: =SUM( I125:I126) -> 0 | J124: =SUM( J125:J126) -> 0 | K124: =SUM( K125:K126) -> 0 | P124: 800
D125: 29.1 | E125: по одноставочному тарифу | F125: 2430 | G125: 0 | P125: 810
D126: 29.2 | E126: по двухставочному тарифу: | F126: 2440 | G126: 0 | H126: =H127+H129 -> 0 | I126: =I127+I129 -> 0 | J126: =J127+J129 -> 0 | K126: =K127+K129 -> 0 | P126: 820
D127: 29.2.1 | E127: мощность, в том числе: | F127: 2450 | G127: 0 | P127: 830
D128: 29.2.1.1 | E128: опосредованно потребителям с шин генераторов | F128: 2460 | G128: 0
D129: 29.2.2 | E129: компенсация потерь | F129: 2470 | G129: 0 | P129: 840
D130: 30 | E130: Стоимость услуг, оплачиваемая ГП, ЭСО: | F130: 2480 | G130: 0 | H130: =SUM( H131+H136) -> 0 | I130: =SUM( I131+I136) -> 0 | J130: =SUM( J131+J136) -> 0 | K130: =SUM( K131+K136) -> 0 | P130: 850
D131: 30.1 | E131: по одноставочному тарифу | F131: 2490 | G131: =SUM(H131:K131) -> 0 | H131: =SUM( H132:H133) -> 0 | I131: =SUM( I132:I133) -> 0 | J131: =SUM( J132:J133) -> 0 | K131: =SUM( K132:K133) -> 0 | P131: 860
D132: 30.1.1 | E132: прочим потребителям | F132: 2500 | G132: 0
D133: 30.1.2 | E133: населению и приравненным к нему категориям потребителей: | F133: 2510 | G133: 0 | H133: =H134+H135 -> 0 | I133: =I134+I135 -> 0 | J133: =J134+J135 -> 0 | K133: =K134+K135 -> 0
D134: 30.1.2.1 | E134: в пределах социальной нормы потребления | F134: 2520 | G134: 0
D135: 30.1.2.2 | E135: сверх социальной нормы потребления | F135: 2530 | G135: 0
D136: 30.2 | E136: по двухставочному тарифу (прочие потребители): | F136: 2540 | G136: 0 | H136: =H137+H139 -> 0 | I136: =I137+I139 -> 0 | J136: =J137+J139 -> 0 | K136: =K137+K139 -> 0 | P136: 870
D137: 30.2.1 | E137: мощность, в том числе: | F137: 2550 | G137: 0 | P137: 880
D138: 30.2.1.1 | E138: опосредованно потребителям с шин генераторов | F138: 2560 | G138: 0
D139: 30.2.2 | E139: компенсация потерь | F139: 2570 | G139: 0 | P139: 890
D140: 31 | E140: Стоимость услуг, оплачиваемых сетевыми организациями по индивидуальному тарифу: | F140: 2580 | G140: 10008.695 | H140: =SUM( H141:H142) -> 10002.574 | I140: =SUM( I141:I142) -> 0 | J140: =SUM( J141:J142) -> 0 | K140: =SUM( K141:K142) -> 6.121 | P140: 900
D141: 31.1 | E141: по одноставочному тарифу | F141: 2590 | G141: 10002.574 | H141: 10002.574
D142: 31.2 | E142: по двухставочному тарифу: | F142: 2600 | G142: 6.121 | H142: =H143+H144 -> 0 | I142: =I143+I144 -> 0 | J142: =J143+J144 -> 0 | K142: =K143+K144 -> 6.121
D143: 31.2.1 | E143: мощность | F143: 2610 | G143: 2.896 | K143: 2.896 | P143: 920
D144: 31.2.2 | E144: компенсация потерь | F144: 2620 | G144: 3.225 | K144: 3.225 | P144: 910
E146: Должностное лицо, ответственное за | F146: =IF(Титульный!G45="","",Титульный!G45) -> инженер-электрик | I146: =IF(Титульный!G44="","",Титульный!G44) -> Дрожжинова Т.Н.
E147: предоставление статистической информации | F147: (должность) | I147: (Ф.И.О.) | M147: (подпись)
E148: (лицо, уполномоченное предоставлять
E149: статистическую информацию от имени | F149: =IF(Титульный!G46="","",Титульный!G46) -> 498570 | J149: «____» _________20__ год
E150: юридического лица) | F150: (номер контактного телефона) | J150: (дата составления документа)

Sheet Комментарии
D8: Комментарии
D9: =IF(org="","Не определено",org) -> АО "Протон"
D11: № п/п | E11: Комментарий
D12: 1 | E12: 2
D13: 0
E14: Добавить комментарий

Sheet Проверка
B2: Результат проверки
B3: =IF(org="","Не определено",org) -> АО "Протон"
B5: Ссылка | C5: Причина | D5: Статус

Sheet Statistic (hidden)
A1: 50
A2: 06.09.2018 19:26:20 | B2: 14.0 | C2: Windows (32-bit) NT 6.01
A3: 11.09.2018 18:16:52 | B3: 14.0 | C3: Windows (32-bit) NT 6.01
A4: 11.09.2018 20:57:11 | B4: 14.0 | C4: Windows (32-bit) NT 6.01
A5: 12.09.2018 09:35:26 | B5: 14.0 | C5: Windows (32-bit) NT 6.01
A6: 12.09.2018 10:24:58 | B6: 14.0 | C6: Windows (32-bit) NT 6.01
A7: 12.09.2018 16:27:05 | B7: 14.0 | C7: Windows (32-bit) NT 6.01
A8: 13.09.2018 15:09:23 | B8: 14.0 | C8: Windows (32-bit) NT 6.01
A9: 13.09.2018 16:04:22 | B9: 14.0 | C9: Windows (32-bit) NT 6.01
A10: 13.09.2018 16:05:18 | B10: 14.0 | C10: Windows (32-bit) NT 6.01
A11: 13.09.2018 19:14:38 | B11: 14.0 | C11: Windows (32-bit) NT 6.01
A12: 14.09.2018 11:13:01 | B12: 14.0 | C12: Windows (32-bit) NT 6.01
A13: 14.09.2018 11:18:37 | B13: 14.0 | C13: Windows (32-bit) NT 6.01
A14: 17.09.2018 21:09:54 | B14: 14.0 | C14: Windows (32-bit) NT 6.01
A15: 18.09.2018 10:38:31 | B15: 14.0 | C15: Windows (32-bit) NT 6.01
A16: 18.09.2018 12:43:39 | B16: 14.0 | C16: Windows (32-bit) NT 6.01
A17: 18.09.2018 12:47:52 | B17: 14.0 | C17: Windows (32-bit) NT 6.01
A18: 18.09.2018 12:54:00 | B18: 14.0 | C18: Windows (32-bit) NT 6.01
A19: 18.09.2018 12:57:51 | B19: 14.0 | C19: Windows (32-bit) NT 6.01
A20: 18.09.2018 13:09:47 | B20: 14.0 | C20: Windows (32-bit) NT 6.01
A21: 18.09.2018 13:11:28 | B21: 14.0 | C21: Windows (32-bit) NT 6.01
A22: 18.09.2018 13:28:28 | B22: 14.0 | C22: Windows (32-bit) NT 6.01
A23: 18.09.2018 15:52:57 | B23: 14.0 | C23: Windows (32-bit) NT 6.01
A24: 18.09.2018 17:01:38 | B24: 14.0 | C24: Windows (32-bit) NT 6.01
A25: 18.09.2018 18:14:48 | B25: 14.0 | C25: Windows (32-bit) NT 6.01
A26: 19.09.2018 16:09:09 | B26: 14.0 | C26: Windows (32-bit) NT 6.01
A27: 19.09.2018 18:23:43 | B27: 14.0 | C27: Windows (32-bit) NT 6.01
A28: 20.09.2018 10:53:47 | B28: 14.0 | C28: Windows (32-bit) NT 6.01
A29: 20.09.2018 11:00:09 | B29: 14.0 | C29: Windows (32-bit) NT 6.01
A30: 20.09.2018 11:51:55 | B30: 14.0 | C30: Windows (32-bit) NT 6.01
A31: 20.09.2018 12:24:20 | B31: 14.0 | C31: Windows (32-bit) NT 6.01
A32: 20.09.2018 15:06:45 | B32: 14.0 | C32: Windows (32-bit) NT 6.01
A33: 20.09.2018 15:26:56 | B33: 14.0 | C33: Windows (32-bit) NT 6.01
A34: 21.09.2018 13:25:15 | B34: 14.0 | C34: Windows (32-bit) NT 6.01
A35: 21.09.2018 15:22:58 | B35: 14.0 | C35: Windows (32-bit) NT 6.01
A36: 21.09.2018 15:42:42 | B36: 14.0 | C36: Windows (32-bit) NT 6.01
A37: 21.09.2018 16:03:56 | B37: 14.0 | C37: Windows (32-bit) NT 6.01
A38: 21.09.2018 20:18:40 | B38: 14.0 | C38: Windows (32-bit) NT 6.01
A39: 22.09.2018 17:11:07 | B39: 14.0 | C39: Windows (32-bit) NT 6.01
A40: 23.09.2018 20:21:15 | B40: 14.0 | C40: Windows (32-bit) NT 6.01
A41: 24.09.2018 14:40:14 | B41: 14.0 | C41: Windows (32-bit) NT 6.01
A42: 25.09.2018 14:58:01 | B42: 14.0 | C42: Windows (32-bit) NT 6.01
A43: 25.09.2018 19:01:11 | B43: 14.0 | C43: Windows (32-bit) NT 6.01
A44: 03.10.2018 12:23:00 | B44: 14.0 | C44: Windows (32-bit) NT 6.01
A45: 09.10.2018 16:16:11 | B45: 12.0 | C45: Windows (32-bit) NT 6.02
A46: 11.01.2019 10:34:41 | B46: 12.0 | C46: Windows (32-bit) NT 6.02
A47: 28.03.2019 10:23:11 | B47: 12.0 | C47: Windows (32-bit) NT 6.02
A48: 17.04.2019 09:39:31 | B48: 16.0 | C48: Windows (32-bit) NT 6.01
A49: 18.04.2019 15:15:47 | B49: 12.0 | C49: Windows (32-bit) NT 6.02
A50: 14.05.2019 09:58:03 | B50: 12.0 | C50: Windows (32-bit) NT 6.02

Sheet TEHSHEET (hidden)
B1: Алтайский край | D1: MONTH | E1: YEAR | F1: DaNet | G1: type_report
A2: 0 | B2: Амурская область | D2: январь | E2: 2018 | F2: Да | G2: В целом по организации
B3: Архангельская область | D3: февраль | E3: 2019 | F3: Нет | G3: По обособленному подразделению
B4: Астраханская область | D4: март | E4: 2020
B5: Белгородская область | D5: апрель | E5: 2021
B6: Брянская область | D6: май | E6: 2022
B7: Владимирская область | D7: июнь
B8: Волгоградская область | D8: июль
B9: Вологодская область | D9: август
B10: Воронежская область | D10: сентябрь
B11: г.Байконур | D11: октябрь
B12: г. Москва | D12: ноябрь
B13: г.Санкт-Петербург | D13: декабрь
B14: г.Севастополь | D14: год
B15: Еврейская автономная область
B16: Забайкальский край
B17: Ивановская область
B18: Иркутская область
B19: Кабардино-Балкарская республика
B20: Калининградская область
B21: Калужская область
B22: Камчатский край | D22: URL_FORMAT
B23: Карачаево-Черкесская республика | D23: https://portal.eias.ru/Portal/DownloadPage.aspx?type=12&guid=????????-????-????-????-????????????
B24: Кемеровская область | D24: MSG_URL
B25: Кировская область | D25: ="Необходимо ввести ссылку на обосновывающие материалы в формате: """ & URL_FORMAT & """ (смотри раздел ""Методология заполнения"" листа ""Инструкция"")" -> Необходимо ввести ссылку на обосновывающие материалы в формате: "https://portal.eias.ru/Portal/DownloadPage.aspx?type=12&guid=????????-????-????-????-????????????" (смотри раздел "Методология заполнения" листа "Инструкция")
B26: Костромская область
B27: Краснодарский край
B28: Красноярский край
B29: Курганская область
B30: Курская область
B31: Ленинградская область
B32: Липецкая область
B33: Магаданская область
B34: Московская область
B35: Мурманская область
B36: Ненецкий автономный округ
B37: Нижегородская область
B38: Новгородская область
B39: Новосибирская область
B40: Омская область
B41: Оренбургская область
B42: Орловская область
B43: Пензенская область
B44: Пермский край
B45: Приморский край
B46: Псковская область
B47: Республика Адыгея
B48: Республика Алтай
B49: Республика Башкортостан
B50: Республика Бурятия
B51: Республика Дагестан
B52: Республика Ингушетия
B53: Республика Калмыкия
B54: Республика Карелия
B55: Республика Коми
B56: Республика Крым
B57: Республика Марий Эл
B58: Республика Мордовия
B59: Республика Саха (Якутия)
B60: Республика Северная Осетия-Алания
B61: Республика Татарстан
B62: Республика Тыва
B63: Республика Хакасия
B64: Ростовская область
B65: Рязанская область
B66: Самарская область
B67: Саратовская область
B68: Сахалинская область
B69: Свердловская область
B70: Смоленская область
B71: Ставропольский край
B72: Тамбовская область
B73: Тверская область
B74: Томская область
B75: Тульская область
B76: Тюменская область
B77: Удмуртская республика
B78: Ульяновская область
B79: Хабаровский край
B80: Ханты-Мансийский автономный округ
B81: Челябинская область
B82: Чеченская республика
B83: Чувашская республика
B84: Чукотский автономный округ
B85: Ямало-Ненецкий автономный округ
B86: Ярославская область

Sheet et_union (hidden)
A2: et_com
C3: О | D3: 1
A4: et_org
G5: =SUM(H5:K5) -> 0

Sheet AllSheetsInThisWorkbook (hidden)
A1: Расчетные листы | B1: Скрытые листы
A2: Инструкция | B2: Statistic
A3: Лог обновления | B3: TEHSHEET
A4: Титульный | B4: et_union
A5: Отпуск ЭЭ сет организациями | B5: AllSheetsInThisWorkbook
A6: Комментарии | B6: mod_01
A7: Проверка | B7: mod_11
B8: modComm
B9: modListProv
B10: modButton
B11: modInstruction
B12: modHTTP
B13: REESTR_ORG
B14: REESTR_FIL
B15: REESTR_MO
B16: REESTR_EGRUL
B17: modfrmRegion
B18: modfrmReestr
B19: modfrmFindEGRUL
B20: modfrmCheckUpdates
B21: modReestr
B22: modUpdTemplMain
B23: modHyperlink
B24: modClassifierValidate

Sheet mod_01 (hidden)

Sheet mod_11 (hidden)

Sheet modComm (hidden)

Sheet modListProv (hidden)

Sheet modButton (hidden)

Sheet modInstruction (hidden)

Sheet modHTTP (hidden)

Sheet REESTR_ORG (hidden)
B1: REGION_ID | C1: REGION_NAME | D1: MR_NAME | E1: OKTMR_NAME | F1: MO_NAME | G1: OKTMO_NAME | H1: RST_ORG_ID | I1: ORG_NAME | J1: INN_NAME | K1: KPP_NAME | L1: ORG_START_DATE | M1: ORG_END_DATE | N1: VDET_START_DATE | O1: VDET_END_DATE | P1: VDET_NAME | Q1: VDET_NAME_LIST | R1: VDET_FULL_NAME_LIST | S1: HAS_TARIFF
A2: 1 | B2: 2597 | C2: Орловская область | H2: 28796046 | I2: АО "ГТ Энерго" | J2: 7703806647 | K2: 772801001 | Q2: РСО :: Нерегулируемый сбыт :: Комбинированная выработка :: Некомбинированная выработка | R2: /Электроэнергетика/Передача ЭЭ/РСО :: /Электроэнергетика/Сбыт ЭЭ/Нерегулируемый сбыт :: /Электроэнергетика/Производство ЭЭ/Комбинированная выработка :: /Электроэнергетика/Производство ЭЭ/Некомбинированная выработка | S2: Y
A3: 2 | B3: 2597 | C3: Орловская область | H3: 26318876 | I3: АО "Мосэнергосбыт" | J3: 7736520080 | K3: 997650001 | Q3: ГП | R3: /Электроэнергетика/Сбыт ЭЭ/ГП | S3: Y
A4: 3 | B4: 2597 | C4: Орловская область | H4: 26416856 | I4: АО "Мценский завод "Коммаш" | J4: 5703000204 | K4: 570301001 | Q4: РСО :: Некомбинированная выработка | R4: /Электроэнергетика/Передача ЭЭ/РСО :: /Электроэнергетика/Производство ЭЭ/Некомбинированная выработка | S4: Y
A5: 4 | B5: 2597 | C5: Орловская область | H5: 27215840 | I5: АО "Оборонэнерго" филиал "Волго-Вятский" | J5: 7704726225 | K5: 526343001 | L5: 01-09-2011 00:00:00 | Q5: РСО | R5: /Электроэнергетика/Передача ЭЭ/РСО | S5: Y
A6: 5 | B6: 2597 | C6: Орловская область | H6: 26617350 | I6: АО "Оборонэнергосбыт" | J6: 7704731218 | K6: 773043001 | L6: 23-03-2010 00:00:00 | Q6: ГП | R6: /Электроэнергетика/Сбыт ЭЭ/ГП | S6: Y
A7: 6 | B7: 2597 | C7: Орловская область | H7: 26617350 | I7: АО "Оборонэнергосбыт" | J7: 7704731218 | K7: 773043001 | L7: 23-03-2010 00:00:00 | Q7: Нерегулируемый сбыт | R7: /Электроэнергетика/Сбыт ЭЭ/Нерегулируемый сбыт | S7: Y
A8: 7 | B8: 2597 | C8: Орловская область | H8: 26457763 | I8: АО "Орелоблэнерго" | J8: 5751028520 | K8: 575101001 | Q8: РСО | R8: /Электроэнергетика/Передача ЭЭ/РСО | S8: Y
A9: 8 | B9: 2597 | C9: Орловская область | H9: 26416780 | I9: АО "Протон" | J9: 5753018359 | K9: 575301001 | Q9: РСО | R9: /Электроэнергетика/Передача ЭЭ/РСО | S9: Y
A10: 9 | B10: 2597 | C10: Орловская область | H10: 26416948 | I10: ЗАО "АВТОБАЗИС" | J10: 5753029390 | K10: 575301001 | Q10: РСО | R10: /Электроэнергетика/Передача ЭЭ/РСО | S10: Y
A11: 10 | B11: 2597 | C11: Орловская область | H11: 26846206 | I11: ИП Абрамов М.И. | J11: 575305979807 | K11: отсутствует | Q11: РСО | R11: /Электроэнергетика/Передача ЭЭ/РСО | S11: Y
A12: 11 | B12: 2597 | C12: Орловская область | H12: 26812344 | I12: ИП Шамардин В. Д. | J12: 575303336984 | K12: отсутствует | Q12: РСО | R12: /Электроэнергетика/Передача ЭЭ/РСО | S12: Y
A13: 12 | B13: 2597 | C13: Орловская область | H13: 28976639 | I13: МУП "Свердловский" | J13: 5722004229 | K13: 572201001 | Q13: Комбинированная выработка | R13: /Электроэнергетика/Производство ЭЭ/Комбинированная выработка | S13: Y
A14: 13 | B14: 2597 | C14: Орловская область | H14: 26505895 | I14: Московская дирекция по энергообеспечению Трансэнерго - филиал ОАО "РЖД" | J14: 7708503727 | K14: 770845041 | Q14: РСО | R14: /Электроэнергетика/Передача ЭЭ/РСО | S14: Y
A15: 14 | B15: 2597 | C15: Орловская область | H15: 26519580 | I15: ОАО "МЛЗ" | J15: 5703008860 | K15: 570301001 | Q15: РСО | R15: /Электроэнергетика/Передача ЭЭ/РСО | S15: Y
A16: 15 | B16: 2597 | C16: Орловская область | H16: 26359142 | I16: ОАО "Орловские металлы" | J16: 5700000196 | K16: 570301001 | Q16: РСО | R16: /Электроэнергетика/Передача ЭЭ/РСО | S16: Y
A17: 16 | B17: 2597 | C17: Орловская область | H17: 26837653 | I17: ОАО ГК «ТНС энерго» | J17: 7705541227 | K17: 770201001 | Q17: Нерегулируемый сбыт | R17: /Электроэнергетика/Сбыт ЭЭ/Нерегулируемый сбыт | S17: Y
A18: 17 | B18: 2597 | C18: Орловская область | H18: 26416515 | I18: ООО "ОПК-Энерго" | J18: 5754006476 | K18: 575401001 | Q18: РСО | R18: /Электроэнергетика/Передача ЭЭ/РСО | S18: Y
A19: 18 | B19: 2597 | C19: Орловская область | H19: 28494271 | I19: ООО "Антаго" | J19: 5752058623 | K19: 575201001 | Q19: РСО | R19: /Электроэнергетика/Передача ЭЭ/РСО | S19: Y
A20: 19 | B20: 2597 | C20: Орловская область | H20: 26766814 | I20: ООО "ГРИНН Энергосбыт" | J20: 4632116134 | K20: 463201001 | Q20: Нерегулируемый сбыт | R20: /Электроэнергетика/Сбыт ЭЭ/Нерегулируемый сбыт | S20: Y
A21: 20 | B21: 2597 | C21: Орловская область | H21: 26613700 | I21: ООО "Гарант Энерго" | J21: 7709782777 | K21: 770901001 | Q21: Нерегулируемый сбыт | R21: /Электроэнергетика/Сбыт ЭЭ/Нерегулируемый сбыт | S21: Y
A22: 21 | B22: 2597 | C22: Орловская область | H22: 26524717 | I22: ООО "Каскад-Энергосбыт" | J22: 4028033356 | K22: 402801001 | Q22: Нерегулируемый сбыт | R22: /Электроэнергетика/Сбыт ЭЭ/Нерегулируемый сбыт | S22: Y
A23: 22 | B23: 2597 | C23: Орловская область | H23: 28798112 | I23: ООО "Квадра-Энергосбыт" | J23: 7107536816 | K23: 710701001 | Q23: Нерегулируемый сбыт | R23: /Электроэнергетика/Сбыт ЭЭ/Нерегулируемый сбыт | S23: Y
A24: 23 | B24: 2597 | C24: Орловская область | H24: 28147378 | I24: ООО "МагнитЭнерго" | J24: 7715902899 | K24: 231001001 | Q24: Нерегулируемый сбыт | R24: /Электроэнергетика/Сбыт ЭЭ/Нерегулируемый сбыт | S24: Y
A25: 24 | B25: 2597 | C25: Орловская область | H25: 27667971 | I25: ООО "МагнитЭнерго" | J25: 7715902899 | K25: 771501001 | Q25: Нерегулируемый сбыт | R25: /Электроэнергетика/Сбыт ЭЭ/Нерегулируемый сбыт | S25: Y
A26: 25 | B26: 2597 | C26: Орловская область | H26: 27567581 | I26: ООО "Орловский энергосбыт" | J26: 5754020600 | K26: 575301001 | L26: 22-08-2011 00:00:00 | Q26: ГП | R26: /Электроэнергетика/Сбыт ЭЭ/ГП | S26: Y
A27: 26 | B27: 2597 | C27: Орловская область | H27: 26519588 | I27: ООО "Промэнергосеть" | J27: 5753041654 | K27: 575301001 | Q27: РСО | R27: /Электроэнергетика/Передача ЭЭ/РСО | S27: Y
A28: 27 | B28: 2597 | C28: Орловская область | H28: 28113333 | I28: ООО "РН-Энерго" | J28: 7706525041 | K28: 774850001 | L28: 26-02-2004 00:00:00 | Q28: Нерегулируемый сбыт | R28: /Электроэнергетика/Сбыт ЭЭ/Нерегулируемый сбыт | S28: N
A29: 28 | B29: 2597 | C29: Орловская область | H29: 26416221 | I29: ООО "РН-Энерго" | J29: 7706525041 | K29: 997650001 | L29: 02-05-2012 00:00:00 | Q29: Нерегулируемый сбыт | R29: /Электроэнергетика/Сбыт ЭЭ/Нерегулируемый сбыт | S29: Y
A30: 29 | B30: 2597 | C30: Орловская область | H30: 26406211 | I30: ООО "Русэнергоресурс" | J30: 7706288496 | K30: 770601001 | Q30: Нерегулируемый сбыт | R30: /Электроэнергетика/Сбыт ЭЭ/Нерегулируемый сбыт | S30: Y
A31: 30 | B31: 2597 | C31: Орловская область | H31: 26502786 | I31: ООО "Русэнергосбыт" | J31: 7706284124 | K31: 770601001 | Q31: Нерегулируемый сбыт | R31: /Электроэнергетика/Сбыт ЭЭ/Нерегулируемый сбыт | S31: Y
A32: 31 | B32: 2597 | C32: Орловская область | H32: 26359174 | I32: ООО "СтройПарк" | J32: 5753037217 | K32: 575301001 | Q32: РСО | R32: /Электроэнергетика/Передача ЭЭ/РСО | S32: Y
A33: 32 | B33: 2597 | C33: Орловская область | H33: 26519585 | I33: ООО "ТЭС" | J33: 6311049306 | K33: 531101001 | Q33: РСО | R33: /Электроэнергетика/Передача ЭЭ/РСО | S33: Y
A34: 33 | B34: 2597 | C34: Орловская область | H34: 26497668 | I34: ООО "Транснефтьэнерго" | J34: 7703552167 | K34: 772301001 | L34: 01-07-2009 00:00:00 | Q34: Нерегулируемый сбыт | R34: /Электроэнергетика/Сбыт ЭЭ/Нерегулируемый сбыт | S34: Y
A35: 34 | B35: 2597 | C35: Орловская область | H35: 26801410 | I35: ООО "Центральная Энергосбытовая Компания" | J35: 6950076383 | K35: 770901001 | Q35: Нерегулируемый сбыт | R35: /Электроэнергетика/Сбыт ЭЭ/Нерегулируемый сбыт | S35: Y
A36: 35 | B36: 2597 | C36: Орловская область | H36: 30989522 | I36: ООО "ЭСВ" | J36: 7704440018 | K36: 332701001 | Q36: Нерегулируемый сбыт | R36: /Электроэнергетика/Сбыт ЭЭ/Нерегулируемый сбыт | S36: Y
A37: 36 | B37: 2597 | C37: Орловская область | H37: 28494405 | I37: ООО "Энергосистема" | J37: 7715887873 | K37: 770201001 | Q37: Нерегулируемый сбыт | R37: /Электроэнергетика/Сбыт ЭЭ/Нерегулируемый сбыт | S37: Y
A38: 37 | B38: 2597 | C38: Орловская область | H38: 30434147 | I38: ООО «Лыковская ГЭС» | J38: 5717009038 | K38: 571701001 | Q38: РСО :: Некомбинированная выработка | R38: /Электроэнергетика/Передача ЭЭ/РСО :: /Электроэнергетика/Производство ЭЭ/Некомбинированная выработка | S38: Y
A39: 38 | B39: 2597 | C39: Орловская область | H39: 31304544 | I39: ООО «РЭК» | J39: 7714974474 | K39: 645401001 | Q39: Нерегулируемый сбыт | R39: /Электроэнергетика/Сбыт ЭЭ/Нерегулируемый сбыт | S39: Y
A40: 39 | B40: 2597 | C40: Орловская область | H40: 30893851 | I40: Общество с ограниченной ответственностью «АгроЭнергоСбыт» | J40: 7730188527 | K40: 773001001 | Q40: Нерегулируемый сбыт | R40: /Электроэнергетика/Сбыт ЭЭ/Нерегулируемый сбыт | S40: Y
A41: 40 | B41: 2597 | C41: Орловская область | H41: 27051136 | I41: ПАО "Квадра - Генерирующая компания" | J41: 6829012680 | K41: 710701001 | Q41: Комбинированная выработка | R41: /Электроэнергетика/Производство ЭЭ/Комбинированная выработка | S41: Y
A42: 41 | B42: 2597 | C42: Орловская область | H42: 27954259 | I42: ПАО "ФСК ЕЭС" | J42: 4716016979 | K42: 997450001 | Q42: РСО | R42: /Электроэнергетика/Передача ЭЭ/РСО | S42: Y
A43: 42 | B43: 2597 | C43: Орловская область | H43: 27301763 | I43: Филиал «Юго-Западный» АО «Оборонэнерго» | J43: 7704726225 | K43: 575243001 | Q43: РСО | R43: /Электроэнергетика/Передача ЭЭ/РСО | S43: Y
A44: 43 | B44: 2597 | C44: Орловская область | H44: 30378002 | I44: Филиал ПАО "Квадра" - "Орловская генерация" | J44: 6829012680 | K44: 575143001 | Q44: Комбинированная выработка | R44: /Электроэнергетика/Производство ЭЭ/Комбинированная выработка | S44: Y
A45: 44 | B45: 2597 | C45: Орловская область | H45: 26519566 | I45: Филиал ПАО "МРСК Центра" - "Орелэнерго" | J45: 6901067107 | K45: 575102001 | Q45: РСО | R45: /Электроэнергетика/Передача ЭЭ/РСО | S45: Y
A46: 45 | B46: 2597 | C46: Орловская область | H46: 26513518 | I46: Центральный филиал ООО «Газпром энерго» | J46: 7736186950 | K46: 504343001 | L46: 07-02-2006 00:00:00 | Q46: РСО | R46: /Электроэнергетика/Передача ЭЭ/РСО | S46: Y

Sheet REESTR_FIL (hidden)
A1: МР | B1: МО | C1: МО_ОКТМО | D1: МР | E1: ИМЯ ДИАПАЗОНА

Sheet REESTR_MO (hidden)
A1: МР | B1: МО | C1: МО_ОКТМО | D1: МО_ТИП | E1: МР | F1: ИМЯ ДИАПАЗОНА
A2: Болховский муниципальный район | B2: Багриновское сельское поселение | C2: 54604402 | D2: сельское поселение | E2: Болховский муниципальный район | F2: MO_LIST_2
A3: Болховский муниципальный район | B3: Болхов городское поселение | C3: 54604101 | D3: городское поселение, в состав которого входит город | E3: Верховский муниципальный район | F3: MO_LIST_3
A4: Болховский муниципальный район | B4: Болховский муниципальный район | C4: 54604000 | D4: муниципальный район | E4: Глазуновский муниципальный район | F4: MO_LIST_4
A5: Болховский муниципальный район | B5: Бориловское сельское поселение | C5: 54604406 | D5: сельское поселение | E5: Город Ливны | F5: MO_LIST_5
A6: Болховский муниципальный район | B6: Боровское сельское поселение | C6: 54604408 | D6: сельское поселение | E6: Город Мценск | F6: MO_LIST_6
A7: Болховский муниципальный район | B7: Герасимовское сельское поселение | C7: 54604410 | D7: сельское поселение | E7: Город Орёл | F7: MO_LIST_7
A8: Болховский муниципальный район | B8: Гнездиловское сельское поселение | C8: 54604413 | D8: сельское поселение | E8: Дмитровский муниципальный район | F8: MO_LIST_8
A9: Болховский муниципальный район | B9: Злынское сельское поселение | C9: 54604416 | D9: сельское поселение | E9: Должанский муниципальный район | F9: MO_LIST_9
A10: Болховский муниципальный район | B10: Медведковское сельское поселение | C10: 54604422 | D10: сельское поселение | E10: Залегощенский муниципальный район | F10: MO_LIST_10
A11: Болховский муниципальный район | B11: Михневское сельское поселение | C11: 54604425 | D11: сельское поселение | E11: Знаменский муниципальный район | F11: MO_LIST_11
A12: Болховский муниципальный район | B12: Новосинецкое сельское поселение | C12: 54604428 | D12: сельское поселение | E12: Колпнянский муниципальный район | F12: MO_LIST_12
A13: Болховский муниципальный район | B13: Однолуцкое сельское поселение | C13: 54604431 | D13: сельское поселение | E13: Корсаковский муниципальный район | F13: MO_LIST_13
A14: Болховский муниципальный район | B14: Сурьянинское сельское поселение | C14: 54604434 | D14: сельское поселение | E14: Краснозоренский муниципальный район | F14: MO_LIST_14
A15: Болховский муниципальный район | B15: Хуторское сельское поселение | C15: 54604437 | D15: сельское поселение | E15: Кромской муниципальный район | F15: MO_LIST_15
A16: Болховский муниципальный район | B16: Ямское сельское поселение | C16: 54604440 | D16: сельское поселение | E16: Ливенский муниципальный район | F16: MO_LIST_16
A17: Верховский муниципальный район | B17: Васильевское сельское поселение | C17: 54608402 | D17: сельское поселение | E17: Малоархангельский муниципальный район | F17: MO_LIST_17
A18: Верховский муниципальный район | B18: Верховский муниципальный район | C18: 54608000 | D18: муниципальный район | E18: Мценский муниципальный район | F18: MO_LIST_18
A19: Верховский муниципальный район | B19: Верховье городское поселение | C19: 54608151 | D19: городское поселение, в состав которого входит поселок | E19: Новодеревеньковский муниципальный район | F19: MO_LIST_19
A20: Верховский муниципальный район | B20: Галичинское | C20: 54608404 | D20: сельское поселение | E20: Новосильский муниципальный район | F20: MO_LIST_20
A21: Верховский муниципальный район | B21: Коньшинское сельское поселение | C21: 54608407 | D21: сельское поселение | E21: Орловский муниципальный район | F21: MO_LIST_21
A22: Верховский муниципальный район | B22: Корсунское сельское поселение | C22: 54608410 | D22: сельское поселение | E22: Покровский муниципальный район | F22: MO_LIST_22
A23: Верховский муниципальный район | B23: Нижне-Жерновское сельское поселение | C23: 54608413 | D23: сельское поселение | E23: Свердловский муниципальный район | F23: MO_LIST_23
A24: Верховский муниципальный район | B24: Песоченское сельское поселение | C24: 54608416 | D24: сельское поселение | E24: Сосковский муниципальный район | F24: MO_LIST_24
A25: Верховский муниципальный район | B25: Русско-Бродское сельское поселение | C25: 54608419 | D25: сельское поселение | E25: Троснянский муниципальный район | F25: MO_LIST_25
A26: Верховский муниципальный район | B26: Скородненское сельское поселение | C26: 54608422 | D26: сельское поселение | E26: Урицкий муниципальный район | F26: MO_LIST_26
A27: Верховский муниципальный район | B27: Теляженское сельское поселение | C27: 54608428 | D27: сельское поселение | E27: Хотынецкий муниципальный район | F27: MO_LIST_27
A28: Верховский муниципальный район | B28: Туровское сельское поселение | C28: 54608431 | D28: сельское поселение | E28: Шаблыкинский муниципальный район | F28: MO_LIST_28
A29: Глазуновский муниципальный район | B29: Богородское сельское поселение | C29: 54610402 | D29: сельское поселение
A30: Глазуновский муниципальный район | B30: Глазуновка городское поселение | C30: 54610151 | D30: городское поселение, в состав которого входит поселок
A31: Глазуновский муниципальный район | B31: Глазуновский муниципальный район | C31: 54610000 | D31: муниципальный район
A32: Глазуновский муниципальный район | B32: Краснослободское сельское поселение | C32: 54610404 | D32: сельское поселение
A33: Глазуновский муниципальный район | B33: Медведевское сельское поселение | C33: 54610407 | D33: сельское поселение
A34: Глазуновский муниципальный район | B34: Отрадинское сельское поселение | C34: 54610410 | D34: сельское поселение
A35: Глазуновский муниципальный район | B35: Очкинское сельское поселение | C35: 54610413 | D35: сельское поселение
A36: Глазуновский муниципальный район | B36: Сеньковское сельское поселение | C36: 54610416 | D36: сельское поселение
A37: Глазуновский муниципальный район | B37: Тагинское сельское поселение | C37: 54610419 | D37: сельское поселение
A38: Город Ливны | B38: Город Ливны | C38: 54705000 | D38: городской округ
A39: Город Мценск | B39: Город Мценск | C39: 54710000 | D39: городской округ
A40: Город Орёл | B40: Город Орёл | C40: 54701000 | D40: городской округ
A41: Дмитровский муниципальный район | B41: Алешинское сельское поселение | C41: 54612402 | D41: сельское поселение
A42: Дмитровский муниципальный район | B42: Березовское сельское поселение | C42: 54612404 | D42: сельское поселение
A43: Дмитровский муниципальный район | B43: Бородинское сельское поселение | C43: 54612407 | D43: сельское поселение
A44: Дмитровский муниципальный район | B44: Горбуновское сельское поселение | C44: 54612410 | D44: сельское поселение
A45: Дмитровский муниципальный район | B45: Дмитровск городское поселение | C45: 54612101 | D45: городское поселение, в состав которого входит город
A46: Дмитровский муниципальный район | B46: Дмитровский муниципальный район | C46: 54612000 | D46: муниципальный район
A47: Дмитровский муниципальный район | B47: Долбенкинское сельское поселение | C47: 54612413 | D47: сельское поселение
A48: Дмитровский муниципальный район | B48: Домаховское сельское поселение | C48: 54612416 | D48: сельское поселение
A49: Дмитровский муниципальный район | B49: Друженское сельское поселение | C49: 54612428 | D49: сельское поселение
A50: Дмитровский муниципальный район | B50: Лубянское сельское поселение | C50: 54612419 | D50: сельское поселение
A51: Дмитровский муниципальный район | B51: Малобобровское сельское поселение | C51: 54612422 | D51: сельское поселение
A52: Дмитровский муниципальный район | B52: Плосковское сельское поселение | C52: 54612425 | D52: сельское поселение
A53: Дмитровский муниципальный район | B53: Соломинское | C53: 54612431 | D53: сельское поселение
A54: Дмитровский муниципальный район | B54: Столбищенское сельское поселение | C54: 54612434 | D54: сельское поселение
A55: Должанский муниципальный район | B55: Вышнее Ольшанское сельское поселение | C55: 54615402 | D55: сельское поселение
A56: Должанский муниципальный район | B56: Долгое городское поселение | C56: 54615151 | D56: городское поселение, в состав которого входит поселок
A57: Должанский муниципальный район | B57: Должанский муниципальный район | C57: 54615000 | D57: муниципальный район
A58: Должанский муниципальный район | B58: Дубровское сельское поселение | C58: 54615405 | D58: сельское поселение
A59: Должанский муниципальный район | B59: Козьма-Демьяновское сельское поселение | C59: 54615407 | D59: сельское поселение
A60: Должанский муниципальный район | B60: Кудиновское сельское поселение | C60: 54615410 | D60: сельское поселение
A61: Должанский муниципальный район | B61: Рогатинское сельское поселение | C61: 54615413 | D61: сельское поселение
A62: Должанский муниципальный район | B62: Урыновское сельское поселение | C62: 54615416 | D62: сельское поселение
A63: Должанский муниципальный район | B63: Успенское сельское поселение | C63: 54615419 | D63: сельское поселение
A64: Залегощенский муниципальный район | B64: Бортновское сельское поселение | C64: 54618402 | D64: сельское поселение
A65: Залегощенский муниципальный район | B65: Верхнескворченское сельское поселение | C65: 54618404 | D65: сельское поселение
A66: Залегощенский муниципальный район | B66: Грачевское сельское поселение | C66: 54618407 | D66: сельское поселение
A67: Залегощенский муниципальный район | B67: Залегощенский муниципальный район | C67: 54618000 | D67: муниципальный район
A68: Залегощенский муниципальный район | B68: Залегощь городское поселение | C68: 54618151 | D68: городское поселение, в состав которого входит поселок
A69: Залегощенский муниципальный район | B69: Золотаревское сельское поселение | C69: 54618410 | D69: сельское поселение
A70: Залегощенский муниципальный район | B70: Красненское сельское поселение | C70: 54618413 | D70: сельское поселение
A71: Залегощенский муниципальный район | B71: Ломовское сельское поселение | C71: 54618416 | D71: сельское поселение
A72: Залегощенский муниципальный район | B72: Моховское сельское поселение | C72: 54618419 | D72: сельское поселение
A73: Залегощенский муниципальный район | B73: Нижнезалегощенское сельское поселение | C73: 54618422 | D73: сельское поселение
A74: Залегощенский муниципальный район | B74: Октябрьское сельское поселение | C74: 54618425 | D74: сельское поселение
A75: Залегощенский муниципальный район | B75: Прилепское сельское поселение | C75: 54618428 | D75: сельское поселение
A76: Знаменский муниципальный район | B76: Глотовское сельское поселение | C76: 54620405 | D76: сельское поселение
A77: Знаменский муниципальный район | B77: Ждимирское сельское поселение | C77: 54620408 | D77: сельское поселение
A78: Знаменский муниципальный район | B78: Знаменский муниципальный район | C78: 54620000 | D78: муниципальный район
A79: Знаменский муниципальный район | B79: Знаменское сельское поселение | C79: 54620412 | D79: сельское поселение
A80: Знаменский муниципальный район | B80: Коптевское сельское поселение | C80: 54620420 | D80: сельское поселение
A81: Знаменский муниципальный район | B81: Красниковское сельское поселение | C81: 54620422 | D81: сельское поселение
A82: Знаменский муниципальный район | B82: Селиховское сельское поселение | C82: 54620428 | D82: сельское поселение
A83: Знаменский муниципальный район | B83: Узкинское сельское поселение | C83: 54620432 | D83: сельское поселение
A84: Колпнянский муниципальный район | B84: Ахтырское сельское поселение | C84: 54623402 | D84: сельское поселение
A85: Колпнянский муниципальный район | B85: Белоколодезьское сельское поселение | C85: 54623404 | D85: сельское поселение
A86: Колпнянский муниципальный район | B86: Знаменское сельское поселение | C86: 54623407 | D86: сельское поселение
A87: Колпнянский муниципальный район | B87: Карловское сельское поселение | C87: 54623410 | D87: сельское поселение
A88: Колпнянский муниципальный район | B88: Колпна городское поселение | C88: 54623151 | D88: городское поселение, в состав которого входит поселок
A89: Колпнянский муниципальный район | B89: Колпнянский муниципальный район | C89: 54623000 | D89: муниципальный район
A90: Колпнянский муниципальный район | B90: Краснянское сельское поселение | C90: 54623413 | D90: сельское поселение
A91: Колпнянский муниципальный район | B91: Крутовское сельское поселение | C91: 54623416 | D91: сельское поселение
A92: Колпнянский муниципальный район | B92: Тимирязевское сельское поселение | C92: 54623419 | D92: сельское поселение
A93: Колпнянский муниципальный район | B93: Ушаковское сельское поселение | C93: 54623422 | D93: сельское поселение
A94: Колпнянский муниципальный район | B94: Ярищенское сельское поселение | C94: 54623425 | D94: сельское поселение
A95: Корсаковский муниципальный район | B95: Гагаринское сельское поселение | C95: 54626405 | D95: сельское поселение
A96: Корсаковский муниципальный район | B96: Корсаковский муниципальный район | C96: 54626000 | D96: муниципальный район
A97: Корсаковский муниципальный район | B97: Корсаковское сельское поселение | C97: 54626410 | D97: сельское поселение
A98: Корсаковский муниципальный район | B98: Марьинское сельское поселение | C98: 54626413 | D98: сельское поселение
A99: Корсаковский муниципальный район | B99: Нечаевское сельское поселение | C99: 54626417 | D99: сельское поселение
A100: Корсаковский муниципальный район | B100: Новомихайловское сельское поселение | C100: 54626420 | D100: сельское поселение
A101: Корсаковский муниципальный район | B101: Парамоновское сельское поселение | C101: 54626425 | D101: сельское поселение
A102: Корсаковский муниципальный район | B102: Спешневское сельское поселение | C102: 54626430 | D102: сельское поселение
A103: Краснозоренский муниципальный район | B103: Краснозоренский муниципальный район | C103: 54624000 | D103: муниципальный район
A104: Краснозоренский муниципальный район | B104: Краснозоренское сельское поселение | C104: 54624407 | D104: сельское поселение
A105: Краснозоренский муниципальный район | B105: Покровское сельское поселение | C105: 54624412 | D105: сельское поселение
A106: Краснозоренский муниципальный район | B106: Россошенское сельское поселение | C106: 54624417 | D106: сельское поселение
A107: Краснозоренский муниципальный район | B107: Труновское сельское поселение | C107: 54624420 | D107: сельское поселение
A108: Краснозоренский муниципальный район | B108: Успенское сельское поселение | C108: 54624425 | D108: сельское поселение
A109: Кромской муниципальный район | B109: Апальковское сельское поселение | C109: 54625402 | D109: сельское поселение
A110: Кромской муниципальный район | B110: Бельдяжское сельское поселение | C110: 54625404 | D110: сельское поселение
A111: Кромской муниципальный район | B111: Большеколчевское сельское поселение | C111: 54625407 | D111: сельское поселение
A112: Кромской муниципальный район | B112: Городское поселение Кромы | C112: 54625151 | D112: городское поселение, в состав которого входит поселок
A113: Кромской муниципальный район | B113: Гостомльское сельское поселение | C113: 54625413 | D113: сельское поселение
A114: Кромской муниципальный район | B114: Гуторовское сельское поселение | C114: 54625416 | D114: сельское поселение
A115: Кромской муниципальный район | B115: Короськовское сельское поселение | C115: 54625422 | D115: сельское поселение
A116: Кромской муниципальный район | B116: Красниковское сельское поселение | C116: 54625425 | D116: сельское поселение
A117: Кромской муниципальный район | B117: Кривчиковское сельское поселение | C117: 54625428 | D117: сельское поселение
A118: Кромской муниципальный район | B118: Кромской муниципальный район | C118: 54625000 | D118: муниципальный район
A119: Кромской муниципальный район | B119: Кутафинское сельское поселение | C119: 54625431 | D119: сельское поселение
A120: Кромской муниципальный район | B120: Ретяжское сельское поселение | C120: 54625449 | D120: сельское поселение
A121: Кромской муниципальный район | B121: Стрелецкое сельское поселение | C121: 54625452 | D121: сельское поселение
A122: Кромской муниципальный район | B122: Шаховское сельское поселение | C122: 54625458 | D122: сельское поселение
A123: Ливенский муниципальный район | B123: Беломестненское сельское поселение | C123: 54629402 | D123: сельское поселение
A124: Ливенский муниципальный район | B124: Вахновское сельское поселение | C124: 54629404 | D124: сельское поселение
A125: Ливенский муниципальный район | B125: Галическое сельское поселение | C125: 54629407 | D125: сельское поселение
A126: Ливенский муниципальный район | B126: Дутовское сельское поселение | C126: 54629410 | D126: сельское поселение
A127: Ливенский муниципальный район | B127: Здоровецкое сельское поселение | C127: 54629413 | D127: сельское поселение
A128: Ливенский муниципальный район | B128: Казанское сельское поселение | C128: 54629416 | D128: сельское поселение
A129: Ливенский муниципальный район | B129: Козьминское сельское поселение | C129: 54629419 | D129: сельское поселение
A130: Ливенский муниципальный район | B130: Коротышское сельское поселение | C130: 54629422 | D130: сельское поселение
A131: Ливенский муниципальный район | B131: Крутовское сельское поселение | C131: 54629425 | D131: сельское поселение
A132: Ливенский муниципальный район | B132: Ливенский муниципальный район | C132: 54629000 | D132: муниципальный район
A133: Ливенский муниципальный район | B133: Лютовское сельское поселение | C133: 54629428 | D133: сельское поселение
A134: Ливенский муниципальный район | B134: Навесненское сельское поселение | C134: 54629431 | D134: сельское поселение
A135: Ливенский муниципальный район | B135: Никольское сельское поселение | C135: 54629434 | D135: сельское поселение
A136: Ливенский муниципальный район | B136: Островское сельское поселение | C136: 54629440 | D136: сельское поселение
A137: Ливенский муниципальный район | B137: Речицкое сельское поселение | C137: 54629443 | D137: сельское поселение
A138: Ливенский муниципальный район | B138: Сергиевское | C138: 54629446 | D138: сельское поселение
A139: Ливенский муниципальный район | B139: Сосновское сельское поселение | C139: 54629449 | D139: сельское поселение
A140: Малоархангельский муниципальный район | B140: Губкинское сельское поселение | C140: 54632402 | D140: сельское поселение
A141: Малоархангельский муниципальный район | B141: Дубовицкое сельское поселение | C141: 54632404 | D141: сельское поселение
A142: Малоархангельский муниципальный район | B142: Ленинское сельское поселение | C142: 54632407 | D142: сельское поселение
A143: Малоархангельский муниципальный район | B143: Луковское сельское поселение | C143: 54632410 | D143: сельское поселение
A144: Малоархангельский муниципальный район | B144: Малоархангельск городское поселение | C144: 54632101 | D144: городское поселение, в состав которого входит город
A145: Малоархангельский муниципальный район | B145: Малоархангельский муниципальный район | C145: 54632000 | D145: муниципальный район
A146: Малоархангельский муниципальный район | B146: Октябрьское сельское поселение | C146: 54632413 | D146: сельское поселение
A147: Малоархангельский муниципальный район | B147: Первомайское сельское поселение | C147: 54632416 | D147: сельское поселение
A148: Малоархангельский муниципальный район | B148: Подгородненское сельское поселение | C148: 54632419 | D148: сельское поселение
A149: Мценский муниципальный район | B149: Алябьевское сельское поселение | C149: 54636402 | D149: сельское поселение
A150: Мценский муниципальный район | B150: Аникановское сельское поселение | C150: 54636407 | D150: сельское поселение
A151: Мценский муниципальный район | B151: Башкатовское сельское поселение | C151: 54636404 | D151: сельское поселение
A152: Мценский муниципальный район | B152: Воинское сельское поселение | C152: 54636410 | D152: сельское поселение
A153: Мценский муниципальный район | B153: Высокинское сельское поселение | C153: 54636413 | D153: сельское поселение
A154: Мценский муниципальный район | B154: Карандаковское сельское поселение | C154: 54636416 | D154: сельское поселение
A155: Мценский муниципальный район | B155: Мценский муниципальный район | C155: 54636000 | D155: муниципальный район
A156: Мценский муниципальный район | B156: Отрадинское | C156: 54636418 | D156: сельское поселение
A157: Мценский муниципальный район | B157: Подберезовское сельское поселение | C157: 54636428 | D157: сельское поселение
A158: Мценский муниципальный район | B158: Подмокринское сельское поселение | C158: 54636419 | D158: сельское поселение
A159: Мценский муниципальный район | B159: Протасовское сельское поселение | C159: 54636422 | D159: сельское поселение
A160: Мценский муниципальный район | B160: Спасско-Лутовиновское | C160: 54636425 | D160: сельское поселение
A161: Мценский муниципальный район | B161: Тельченское сельское поселение | C161: 54636431 | D161: сельское поселение
A162: Мценский муниципальный район | B162: Чахинское сельское поселение | C162: 54636434 | D162: сельское поселение
A163: Мценский муниципальный район | B163: Черемошенское сельское поселение | C163: 54636437 | D163: сельское поселение
A164: Новодеревеньковский муниципальный район | B164: Глебовское сельское поселение | C164: 54639404 | D164: сельское поселение
A165: Новодеревеньковский муниципальный район | B165: Никитинское сельское поселение | C165: 54639409 | D165: сельское поселение
A166: Новодеревеньковский муниципальный район | B166: Новодеревеньковский муниципальный район | C166: 54639000 | D166: муниципальный район
A167: Новодеревеньковский муниципальный район | B167: Новодеревеньковское сельское поселение | C167: 54639410 | D167: сельское поселение
A168: Новодеревеньковский муниципальный район | B168: Паньковское сельское поселение | C168: 54639413 | D168: сельское поселение
A169: Новодеревеньковский муниципальный район | B169: Старогольское сельское поселение | C169: 54639419 | D169: сельское поселение
A170: Новодеревеньковский муниципальный район | B170: Судбищенское | C170: 54639422 | D170: сельское поселение
A171: Новодеревеньковский муниципальный район | B171: Суровское сельское поселение | C171: 54639425 | D171: сельское поселение
A172: Новодеревеньковский муниципальный район | B172: Хомутово городское поселение | C172: 54639151 | D172: городское поселение, в состав которого входит поселок
A173: Новосильский муниципальный район | B173: Вяжевское сельское поселение | C173: 54643402 | D173: сельское поселение
A174: Новосильский муниципальный район | B174: Глубковское сельское поселение | C174: 54643404 | D174: сельское поселение
A175: Новосильский муниципальный район | B175: Голунское сельское поселение | C175: 54643410 | D175: сельское поселение
A176: Новосильский муниципальный район | B176: Зареченское сельское поселение | C176: 54643413 | D176: сельское поселение
A177: Новосильский муниципальный район | B177: Новосиль городское поселение | C177: 54643101 | D177: городское поселение, в состав которого входит город
A178: Новосильский муниципальный район | B178: Новосильский муниципальный район | C178: 54643000 | D178: муниципальный район
A179: Новосильский муниципальный район | B179: Петушенское сельское поселение | C179: 54643431 | D179: сельское поселение
A180: Новосильский муниципальный район | B180: Прудовское сельское поселение | C180: 54643434 | D180: сельское поселение
A181: Новосильский муниципальный район | B181: Хворостянское сельское поселение | C181: 54643440 | D181: сельское поселение
A182: Орловский муниципальный район | B182: Большекуликовское сельское поселение | C182: 54647402 | D182: сельское поселение
A183: Орловский муниципальный район | B183: Голохвастовское сельское поселение | C183: 54647404 | D183: сельское поселение
A184: Орловский муниципальный район | B184: Жиляевское сельское поселение | C184: 54647407 | D184: сельское поселение
A185: Орловский муниципальный район | B185: Знаменка городское поселение | C185: 54647152 | D185: городское поселение, в состав которого входит поселок
A186: Орловский муниципальный район | B186: Лавровское сельское поселение | C186: 54647410 | D186: сельское поселение
A187: Орловский муниципальный район | B187: Лошаковское сельское поселение | C187: 54647413 | D187: сельское поселение
A188: Орловский муниципальный район | B188: Масловское сельское поселение | C188: 54647416 | D188: сельское поселение
A189: Орловский муниципальный район | B189: Моховицкое сельское поселение | C189: 54647419 | D189: сельское поселение
A190: Орловский муниципальный район | B190: Неполодское сельское поселение | C190: 54647422 | D190: сельское поселение
A191: Орловский муниципальный район | B191: Образцовское сельское поселение | C191: 54647425 | D191: сельское поселение
A192: Орловский муниципальный район | B192: Орловский муниципальный район | C192: 54647000 | D192: муниципальный район
A193: Орловский муниципальный район | B193: Пахомовское сельское поселение | C193: 54647428 | D193: сельское поселение
A194: Орловский муниципальный район | B194: Платоновское сельское поселение | C194: 54647431 | D194: сельское поселение
A195: Орловский муниципальный район | B195: Сабуровское сельское поселение | C195: 54647434 | D195: сельское поселение
A196: Орловский муниципальный район | B196: Спасское сельское поселение | C196: 54647437 | D196: сельское поселение
A197: Орловский муниципальный район | B197: Станово-Колодезьское сельское поселение | C197: 54647443 | D197: сельское поселение
A198: Орловский муниципальный район | B198: Становское сельское поселение | C198: 54647440 | D198: сельское поселение
A199: Орловский муниципальный район | B199: Троицкое сельское поселение | C199: 54647446 | D199: сельское поселение
A200: Покровский муниципальный район | B200: Березовское сельское поселение | C200: 54650402 | D200: сельское поселение
... 68 more rows

Sheet REESTR_EGRUL (hidden)

Sheet modfrmRegion (hidden)

Sheet modfrmReestr (hidden)

Sheet modfrmFindEGRUL (hidden)

Sheet modfrmCheckUpdates (hidden)

Sheet modReestr (hidden)

Sheet modUpdTemplMain (hidden)

Sheet modHyperlink (hidden)

Sheet modClassifierValidate (hidden)
